[Event "*** Titled Tuesday Blitz"]
[Site "Chess.com"]
[Date "2021.02.16"]
[Round "1"]
[White "ketster"]
[Black "lachesisQ"]
[Result "0-1"]
[WhiteElo "2469"]
[BlackElo "3052"]
[TimeControl "180+1"]
[EndTime "10:06:10 PST"]
[Termination "lachesisQ won by resignation"]

1. d4 {[%clk 0:03:00.7]} 1... Nf6 {[%clk 0:02:52.8]} 2. c4 {[%clk 0:02:59.6]}
2... g6 {[%clk 0:02:50.9]} 3. Nc3 {[%clk 0:02:59.5]} 3... Bg7 {[%clk 0:02:46.6]}
4. e4 {[%clk 0:02:58.7]} 4... d6 {[%clk 0:02:46]} 5. Nf3 {[%clk 0:02:56.4]} 5...
O-O {[%clk 0:02:45.8]} 6. h3 {[%clk 0:02:56.1]} 6... Na6 {[%clk 0:02:42.4]} 7.
Be3 {[%clk 0:02:54.9]} 7... Qe8 {[%clk 0:02:41.2]} 8. Be2 {[%clk 0:02:47.9]}
8... e5 {[%clk 0:02:39]} 9. d5 {[%clk 0:02:47.7]} 9... Nc5 {[%clk 0:02:38.5]}
10. Nd2 {[%clk 0:02:46.7]} 10... a5 {[%clk 0:02:35.7]} 11. g4 {[%clk 0:02:42.1]}
11... a4 {[%clk 0:02:28.8]} 12. Qc2 {[%clk 0:02:34.2]} 12... c6 {[%clk
0:02:26.1]} 13. g5 {[%clk 0:02:15]} 13... Nfd7 {[%clk 0:02:24.9]} 14. h4 {[%clk
0:02:12.5]} 14... f5 {[%clk 0:02:23.8]} 15. gxf6 {[%clk 0:01:59.3]} 15... Nxf6
{[%clk 0:02:23.5]} 16. Bxc5 {[%clk 0:01:38.6]} 16... dxc5 {[%clk 0:02:22.7]} 17.
Nxa4 {[%clk 0:01:38.7]} 17... Ng4 {[%clk 0:02:04.5]} 18. Nxc5 {[%clk 0:01:12.9]}
18... Nxf2 {[%clk 0:02:02.4]} 19. Rf1 {[%clk 0:01:09.9]} 19... Qe7 {[%clk
0:02:02.2]} 20. Nd3 {[%clk 0:01:03.3]} 20... Nxd3+ {[%clk 0:01:59]} 21. Qxd3
{[%clk 0:00:59.8]} 21... Qxh4+ {[%clk 0:01:59]} 22. Kd1 {[%clk 0:01:00.2]} 22...
Rxf1+ {[%clk 0:01:50.7]} 23. Nxf1 {[%clk 0:00:56.8]} 23... cxd5 {[%clk
0:01:45.4]} 24. Qxd5+ {[%clk 0:00:55.4]} 24... Kh8 {[%clk 0:01:44.3]} 25. Kc2
{[%clk 0:00:49.2]} 25... Bh3 {[%clk 0:01:43.5]} 26. Rd1 {[%clk 0:00:48]} 26...
Rf8 {[%clk 0:01:42.3]} 27. Ne3 {[%clk 0:00:38.3]} 27... Qf2 {[%clk 0:01:38.5]}
28. Qd3 {[%clk 0:00:22.7]} 28... Bh6 {[%clk 0:01:37.8]} 29. Nd5 {[%clk 0:00:15]}
29... Bg4 {[%clk 0:01:37]} 30. Nc3 {[%clk 0:00:14.8]} 30... Be3 {[%clk
0:01:29.4]} 31. Kb3 {[%clk 0:00:14.4]} 31... Bxe2 {[%clk 0:01:25.2]} 32. Nxe2
{[%clk 0:00:14.3]} 32... h5 {[%clk 0:01:19.8]} 33. Nc3 {[%clk 0:00:13.6]} 33...
Bd4 {[%clk 0:01:19.3]} 34. Nb5 {[%clk 0:00:12.1]} 34... Rf3 {[%clk 0:01:18.5]}
0-1

[Event "*** Titled Tuesday Blitz"]
[Site "Chess.com"]
[Date "2021.02.16"]
[Round "1"]
[White "rugbyclub"]
[Black "Iskusnyh"]
[Result "0-1"]
[WhiteElo "2295"]
[BlackElo "2600"]
[TimeControl "180+1"]
[EndTime "10:06:10 PST"]
[Termination "Iskusnyh won by resignation"]

1. e4 {[%clk 0:03:00.9]} 1... e6 {[%clk 0:02:59.2]} 2. d4 {[%clk 0:03:00]} 2...
d5 {[%clk 0:02:59.7]} 3. e5 {[%clk 0:02:57.9]} 3... c5 {[%clk 0:02:59.1]} 4. c3
{[%clk 0:02:54.3]} 4... Nc6 {[%clk 0:02:59.5]} 5. Nf3 {[%clk 0:02:51.2]} 5...
Qb6 {[%clk 0:02:59.9]} 6. a3 {[%clk 0:02:46.2]} 6... Nh6 {[%clk 0:02:58.2]} 7.
b4 {[%clk 0:02:45.7]} 7... cxd4 {[%clk 0:02:57.9]} 8. cxd4 {[%clk 0:02:45.4]}
8... Nf5 {[%clk 0:02:57]} 9. Bb2 {[%clk 0:02:45.3]} 9... Bd7 {[%clk 0:02:56.3]}
10. g4 {[%clk 0:02:35.2]} 10... Nfe7 {[%clk 0:02:48.3]} 11. Rg1 {[%clk
0:02:32.2]} 11... Ng6 {[%clk 0:02:44.1]} 12. Qd2 {[%clk 0:02:26.8]} 12... Be7
{[%clk 0:02:38]} 13. Nc3 {[%clk 0:02:25.3]} 13... O-O {[%clk 0:02:23.9]} 14. Rc1
{[%clk 0:02:22.7]} 14... Rac8 {[%clk 0:01:59.3]} 15. Na4 {[%clk 0:02:11.5]}
15... Ncxe5 {[%clk 0:01:31.3]} 16. Nxb6 {[%clk 0:01:44.5]} 16... Nxf3+ {[%clk
0:01:30.7]} 17. Kd1 {[%clk 0:01:40.7]} 17... Nxd2 {[%clk 0:01:29.2]} 18. Nxc8
{[%clk 0:01:40.5]} 18... Bxc8 {[%clk 0:01:06.8]} 19. Kxd2 {[%clk 0:00:44.3]}
19... Bg5+ {[%clk 0:01:05.6]} 20. Kd1 {[%clk 0:00:44.3]} 20... Bxc1 {[%clk
0:01:06.2]} 21. Bxc1 {[%clk 0:00:44.5]} 21... Bd7 {[%clk 0:01:05.6]} 22. Bd3
{[%clk 0:00:40.4]} 22... Rc8 {[%clk 0:01:04.5]} 23. Be3 {[%clk 0:00:39.4]} 23...
a6 {[%clk 0:01:00.5]} 24. f4 {[%clk 0:00:36.4]} 24... Bb5 {[%clk 0:00:59.7]} 25.
Bc2 {[%clk 0:00:37]} 25... Rc3 {[%clk 0:00:53.1]} 26. Kd2 {[%clk 0:00:36.2]}
26... Rxa3 {[%clk 0:00:52.4]} 27. Rc1 {[%clk 0:00:35.5]} 27... Bc4 {[%clk
0:00:52]} 28. f5 {[%clk 0:00:31.1]} 28... Nh4 {[%clk 0:00:47.2]} 29. fxe6 {[%clk
0:00:30.3]} 29... Nf3+ {[%clk 0:00:45.4]} 30. Kd1 {[%clk 0:00:29.6]} 30... Rxe3
{[%clk 0:00:44.3]} 31. exf7+ {[%clk 0:00:27.7]} 0-1

[Event "*** Titled Tuesday Blitz"]
[Site "Chess.com"]
[Date "2021.02.16"]
[Round "1"]
[White "OlifantCZ"]
[Black "FMJoseHerrera"]
[Result "0-1"]
[WhiteElo "2299"]
[BlackElo "2602"]
[TimeControl "180+1"]
[EndTime "10:06:11 PST"]
[Termination "FMJoseHerrera won by checkmate"]

1. c4 {[%clk 0:03:00.7]} 1... Nf6 {[%clk 0:02:56.4]} 2. g3 {[%clk 0:03:00.3]}
2... h5 {[%clk 0:02:53.1]} 3. h4 {[%clk 0:02:58.8]} 3... d6 {[%clk 0:02:52]} 4.
Bg2 {[%clk 0:02:58.9]} 4... Nc6 {[%clk 0:02:51.2]} 5. Nc3 {[%clk 0:02:59.1]}
5... g6 {[%clk 0:02:51.2]} 6. d3 {[%clk 0:02:53.6]} 6... Bg7 {[%clk 0:02:50.9]}
7. e4 {[%clk 0:02:53.9]} 7... O-O {[%clk 0:02:49.8]} 8. Nge2 {[%clk 0:02:53.9]}
8... e5 {[%clk 0:02:46.4]} 9. O-O {[%clk 0:02:53.8]} 9... Bg4 {[%clk 0:02:45.6]}
10. f3 {[%clk 0:02:53.5]} 10... Be6 {[%clk 0:02:44.9]} 11. Bg5 {[%clk
0:02:53.3]} 11... Qd7 {[%clk 0:02:44.9]} 12. Bxf6 {[%clk 0:02:52.3]} 12... Bxf6
{[%clk 0:02:44.7]} 13. f4 {[%clk 0:02:49]} 13... Bh3 {[%clk 0:02:43.1]} 14. f5
{[%clk 0:02:47.1]} 14... Bxg2 {[%clk 0:02:42.3]} 15. Kxg2 {[%clk 0:02:47.3]}
15... Nd4 {[%clk 0:02:29.7]} 16. Nd5 {[%clk 0:02:43.1]} 16... Bg7 {[%clk
0:02:25]} 17. Nxd4 {[%clk 0:02:40.1]} 17... exd4 {[%clk 0:02:24.4]} 18. Qe2
{[%clk 0:02:29.7]} 18... c6 {[%clk 0:02:23.7]} 19. Nf4 {[%clk 0:02:29.3]} 19...
Kh7 {[%clk 0:02:21.4]} 20. Rf2 {[%clk 0:02:28]} 20... Rae8 {[%clk 0:02:17.4]}
21. Raf1 {[%clk 0:02:24.6]} 21... d5 {[%clk 0:02:16.9]} 22. Nxh5 {[%clk
0:02:21.8]} 22... Qd6 {[%clk 0:01:11.7]} 23. Nxg7 {[%clk 0:02:18.5]} 23... Kxg7
{[%clk 0:01:09.8]} 24. f6+ {[%clk 0:02:19.1]} 24... Kh7 {[%clk 0:01:08.3]} 25.
cxd5 {[%clk 0:02:15.9]} 25... cxd5 {[%clk 0:01:06.8]} 26. h5 {[%clk 0:02:11.2]}
26... dxe4 {[%clk 0:01:04.7]} 27. dxe4 {[%clk 0:02:09.4]} 27... d3 {[%clk
0:00:57.5]} 28. Qg4 {[%clk 0:02:07.5]} 28... g5 {[%clk 0:00:41.2]} 29. Qf5+
{[%clk 0:02:04.1]} 29... Kh6 {[%clk 0:00:39.8]} 30. Rd1 {[%clk 0:01:53.1]} 30...
Re5 {[%clk 0:00:38.5]} 31. Qf3 {[%clk 0:01:51.5]} 31... Rd8 {[%clk 0:00:38.2]}
32. Rfd2 {[%clk 0:01:51.3]} 32... Qe6 {[%clk 0:00:36.5]} 33. Rxd3 {[%clk
0:01:44.3]} 33... Rxd3 {[%clk 0:00:36.1]} 34. Rxd3 {[%clk 0:01:44.1]} 34... Rxe4
{[%clk 0:00:37]} 35. Rd2 {[%clk 0:01:42.9]} 35... Re3 {[%clk 0:00:36.5]} 36.
Qxb7 {[%clk 0:01:37.6]} 36... Qe5 {[%clk 0:00:36.5]} 37. Kg1 {[%clk 0:01:00.1]}
37... Qxg3+ {[%clk 0:00:29.6]} 38. Qg2 {[%clk 0:00:56.8]} 38... Re1# {[%clk
0:00:29.2]} 0-1

[Event "*** Titled Tuesday Blitz"]
[Site "Chess.com"]
[Date "2021.02.16"]
[Round "1"]
[White "mishanick"]
[Black "Grimlock_Glasgow"]
[Result "1-0"]
[WhiteElo "3010"]
[BlackElo "2467"]
[TimeControl "180+1"]
[EndTime "10:06:12 PST"]
[Termination "mishanick won by resignation"]

1. e4 {[%clk 0:02:50.9]} 1... e5 {[%clk 0:02:59.6]} 2. Nf3 {[%clk 0:02:51.6]}
2... d5 {[%clk 0:02:59.5]} 3. d3 {[%clk 0:02:49.5]} 3... Bd6 {[%clk 0:02:57.2]}
4. Be2 {[%clk 0:02:46.3]} 4... Ne7 {[%clk 0:02:52.7]} 5. Nc3 {[%clk 0:02:43.4]}
5... d4 {[%clk 0:02:48.2]} 6. Nb5 {[%clk 0:02:38.2]} 6... c5 {[%clk 0:02:47]} 7.
Nxd6+ {[%clk 0:02:36.6]} 7... Qxd6 {[%clk 0:02:47.9]} 8. O-O {[%clk 0:02:33.8]}
8... Nbc6 {[%clk 0:02:47.3]} 9. c3 {[%clk 0:02:31.6]} 9... O-O {[%clk
0:02:43.8]} 10. a4 {[%clk 0:02:30.5]} 10... Ng6 {[%clk 0:02:31.6]} 11. Qc2
{[%clk 0:02:28.4]} 11... Be6 {[%clk 0:02:24.7]} 12. Nd2 {[%clk 0:02:27.9]} 12...
Nf4 {[%clk 0:02:23.2]} 13. Nf3 {[%clk 0:02:14.5]} 13... Bb3 {[%clk 0:01:59.4]}
14. Qd2 {[%clk 0:01:48.4]} 14... dxc3 {[%clk 0:01:57]} 15. bxc3 {[%clk
0:01:47.9]} 15... Rfd8 {[%clk 0:01:54.4]} 16. Ne1 {[%clk 0:01:38.2]} 16... c4
{[%clk 0:01:50]} 17. Ba3 {[%clk 0:01:33.3]} 17... Nxe2+ {[%clk 0:01:38.1]} 18.
Qxe2 {[%clk 0:01:28.5]} 18... cxd3 {[%clk 0:01:38.6]} 19. Qd2 {[%clk 0:01:28.7]}
19... Qg6 {[%clk 0:01:23.4]} 20. Nf3 {[%clk 0:01:27.1]} 20... Qxe4 {[%clk
0:01:21.3]} 21. Rfe1 {[%clk 0:01:26.9]} 21... Qf4 {[%clk 0:01:16.1]} 22. Re3
{[%clk 0:01:22]} 22... Na5 {[%clk 0:01:02.1]} 23. Nxe5 {[%clk 0:01:18.7]} 23...
Nc4 {[%clk 0:00:57]} 24. Nxc4 {[%clk 0:01:17.9]} 24... Qxc4 {[%clk 0:00:56.2]}
25. Rae1 {[%clk 0:01:15.5]} 25... Bxa4 {[%clk 0:00:51.5]} 26. Rg3 {[%clk
0:01:03.9]} 26... Re8 {[%clk 0:00:46.4]} 27. Be7 {[%clk 0:00:52.2]} 27... Qc7
{[%clk 0:00:33]} 28. Rxg7+ {[%clk 0:00:49.5]} 28... Kh8 {[%clk 0:00:26.8]} 29.
Qh6 {[%clk 0:00:48.4]} 1-0

[Event "*** Titled Tuesday Blitz"]
[Site "Chess.com"]
[Date "2021.02.16"]
[Round "1"]
[White "LiemLe"]
[Black "elindisguise"]
[Result "1-0"]
[WhiteElo "2976"]
[BlackElo "2466"]
[TimeControl "180+1"]
[EndTime "10:06:12 PST"]
[Termination "LiemLe won by resignation"]

1. d4 {[%clk 0:03:00.9]} 1... f5 {[%clk 0:02:58.6]} 2. Nf3 {[%clk 0:03:00.3]}
2... e6 {[%clk 0:02:57.7]} 3. Bf4 {[%clk 0:03:00.2]} 3... Nf6 {[%clk 0:02:54.4]}
4. e3 {[%clk 0:02:59.2]} 4... d5 {[%clk 0:02:48.3]} 5. c4 {[%clk 0:02:55.6]}
5... c6 {[%clk 0:02:46.8]} 6. Nc3 {[%clk 0:02:54.3]} 6... Bd6 {[%clk 0:02:39.6]}
7. Bxd6 {[%clk 0:02:52.2]} 7... Qxd6 {[%clk 0:02:37.8]} 8. Qc2 {[%clk
0:02:53.1]} 8... O-O {[%clk 0:02:31.8]} 9. Be2 {[%clk 0:02:51]} 9... Ne4 {[%clk
0:02:31.8]} 10. O-O {[%clk 0:02:50.5]} 10... Nd7 {[%clk 0:02:31.2]} 11. Rab1
{[%clk 0:02:50]} 11... a5 {[%clk 0:02:28]} 12. a3 {[%clk 0:02:40.5]} 12... Rf6
{[%clk 0:02:21.6]} 13. b4 {[%clk 0:02:31]} 13... Rh6 {[%clk 0:02:06.6]} 14. b5
{[%clk 0:02:11.3]} 14... g5 {[%clk 0:02:04]} 15. bxc6 {[%clk 0:02:00.2]} 15...
bxc6 {[%clk 0:01:58.8]} 16. cxd5 {[%clk 0:01:54.3]} 16... g4 {[%clk 0:01:25.4]}
17. Nxe4 {[%clk 0:01:44]} 17... fxe4 {[%clk 0:01:12.8]} 18. Qxc6 {[%clk
0:01:40]} 18... Qxc6 {[%clk 0:00:31.9]} 19. dxc6 {[%clk 0:01:40.9]} 19... gxf3
{[%clk 0:00:32.4]} 20. cxd7 {[%clk 0:01:39.1]} 20... Bxd7 {[%clk 0:00:29.6]} 21.
gxf3 {[%clk 0:01:33.7]} 21... Bc6 {[%clk 0:00:25]} 22. f4 {[%clk 0:01:29.3]}
22... Kf7 {[%clk 0:00:22.8]} 23. Kh1 {[%clk 0:01:26.5]} 23... a4 {[%clk
0:00:23]} 24. Rfc1 {[%clk 0:01:18.7]} 24... Bd5 {[%clk 0:00:22.8]} 25. Bc4
{[%clk 0:01:13.6]} 25... Bxc4 {[%clk 0:00:14]} 26. Rxc4 {[%clk 0:01:14.5]} 26...
Ra5 {[%clk 0:00:14.6]} 27. Rg1 {[%clk 0:01:08.6]} 27... Rah5 {[%clk 0:00:14.1]}
28. Rg2 {[%clk 0:01:08.8]} 28... Rb5 {[%clk 0:00:10.7]} 29. Rg5 {[%clk
0:01:08.2]} 29... Rb2 {[%clk 0:00:07.1]} 30. Kg2 {[%clk 0:01:07.9]} 30... Kf6
{[%clk 0:00:04.4]} 31. Rxa4 {[%clk 0:01:07.8]} 1-0

[Event "*** Titled Tuesday Blitz"]
[Site "Chess.com"]
[Date "2021.02.16"]
[Round "1"]
[White "A-S-00"]
[Black "KNCP_719"]
[Result "0-1"]
[WhiteElo "2303"]
[BlackElo "2604"]
[TimeControl "180+1"]
[EndTime "10:06:12 PST"]
[Termination "KNCP_719 won by resignation"]

1. d4 {[%clk 0:02:57.1]} 1... d5 {[%clk 0:03:00]} 2. Nf3 {[%clk 0:02:56.9]} 2...
Nf6 {[%clk 0:03:00.1]} 3. c4 {[%clk 0:02:57.4]} 3... c6 {[%clk 0:03:00.4]} 4.
Nc3 {[%clk 0:02:57.2]} 4... e6 {[%clk 0:03:00.7]} 5. Bg5 {[%clk 0:02:56.6]} 5...
dxc4 {[%clk 0:03:01.1]} 6. e4 {[%clk 0:02:54.4]} 6... b5 {[%clk 0:03:01.5]} 7.
e5 {[%clk 0:02:53.1]} 7... h6 {[%clk 0:03:02.1]} 8. Bh4 {[%clk 0:02:52.6]} 8...
g5 {[%clk 0:03:02.6]} 9. exf6 {[%clk 0:02:53]} 9... gxh4 {[%clk 0:03:02.6]} 10.
Ne5 {[%clk 0:02:53.6]} 10... Qxf6 {[%clk 0:02:59.9]} 11. g3 {[%clk 0:02:51.9]}
11... Nd7 {[%clk 0:03:00]} 12. Bg2 {[%clk 0:02:40]} 12... Nxe5 {[%clk
0:02:51.4]} 13. dxe5 {[%clk 0:02:39.3]} 13... Qxe5+ {[%clk 0:02:52.3]} 14. Qe2
{[%clk 0:02:00]} 14... Qxe2+ {[%clk 0:02:20.6]} 15. Kxe2 {[%clk 0:02:00.9]}
15... Bd7 {[%clk 0:02:14.1]} 16. Rad1 {[%clk 0:01:22]} 16... O-O-O {[%clk
0:02:04.7]} 17. f4 {[%clk 0:01:15]} 17... Rg8 {[%clk 0:01:38]} 18. Ne4 {[%clk
0:01:06.7]} 18... Be7 {[%clk 0:01:37.1]} 19. Bf3 {[%clk 0:01:01.5]} 19... Kc7
{[%clk 0:01:22.5]} 20. g4 {[%clk 0:00:53.9]} 20... f5 {[%clk 0:01:19.6]} 21. Nf2
{[%clk 0:00:53.5]} 21... Rdf8 {[%clk 0:01:08.2]} 22. Rd2 {[%clk 0:00:33.4]}
22... fxg4 {[%clk 0:01:03.1]} 23. Nxg4 {[%clk 0:00:33]} 23... Rxf4 {[%clk
0:00:52]} 24. Ne5 {[%clk 0:00:33]} 24... Be8 {[%clk 0:00:52.4]} 25. Rhd1 {[%clk
0:00:29]} 25... Bf6 {[%clk 0:00:50.9]} 26. Ng4 {[%clk 0:00:18.7]} 26... Rfxg4
{[%clk 0:00:46.6]} 0-1

[Event "*** Titled Tuesday Blitz"]
[Site "Chess.com"]
[Date "2021.02.16"]
[Round "1"]
[White "Balla_Tamas"]
[Black "rasmussvane"]
[Result "0-1"]
[WhiteElo "2453"]
[BlackElo "2914"]
[TimeControl "180+1"]
[EndTime "10:06:15 PST"]
[Termination "rasmussvane won by resignation"]

1. b3 {[%clk 0:02:59.1]} 1... d5 {[%clk 0:02:57.8]} 2. Bb2 {[%clk 0:02:58.6]}
2... Bg4 {[%clk 0:02:57.3]} 3. h3 {[%clk 0:02:55.9]} 3... Bh5 {[%clk 0:02:56.9]}
4. g3 {[%clk 0:02:42.6]} 4... Nc6 {[%clk 0:02:48.7]} 5. f4 {[%clk 0:02:33.6]}
5... f6 {[%clk 0:02:37]} 6. Bg2 {[%clk 0:02:27.4]} 6... e5 {[%clk 0:02:35.6]} 7.
g4 {[%clk 0:02:17.5]} 7... Bg6 {[%clk 0:02:33.1]} 8. e3 {[%clk 0:02:17.1]} 8...
Bc5 {[%clk 0:02:24.7]} 9. f5 {[%clk 0:02:06.6]} 9... Bf7 {[%clk 0:02:24.6]} 10.
d4 {[%clk 0:02:06.7]} 10... Bb4+ {[%clk 0:02:11.3]} 11. c3 {[%clk 0:02:05]}
11... Bd6 {[%clk 0:02:11]} 12. Ne2 {[%clk 0:02:04.7]} 12... h5 {[%clk 0:02:10]}
13. Nd2 {[%clk 0:01:59]} 13... Nh6 {[%clk 0:02:08.1]} 14. Ng3 {[%clk 0:01:34.1]}
14... exd4 {[%clk 0:02:03.4]} 15. Nxh5 {[%clk 0:01:34]} 15... Bxh5 {[%clk
0:01:52]} 16. gxh5 {[%clk 0:01:33.2]} 16... dxe3 {[%clk 0:01:40.1]} 17. Qe2
{[%clk 0:01:23.6]} 17... Bg3+ {[%clk 0:01:38.5]} 18. Kd1 {[%clk 0:01:23.1]}
18... Qe7 {[%clk 0:01:35.6]} 19. Nf1 {[%clk 0:01:19.4]} 19... Bf2 {[%clk
0:01:35.9]} 20. Kc2 {[%clk 0:01:07]} 20... O-O-O {[%clk 0:01:35.3]} 21. Rd1
{[%clk 0:01:04.7]} 21... Kb8 {[%clk 0:01:18]} 22. Rxd5 {[%clk 0:01:01.7]} 22...
Rxd5 {[%clk 0:01:16.2]} 23. Bxd5 {[%clk 0:01:01.8]} 23... Rd8 {[%clk 0:01:15.3]}
24. Bf3 {[%clk 0:00:41.9]} 24... Qc5 {[%clk 0:01:04.9]} 25. Kb1 {[%clk
0:00:35.9]} 25... Qxf5+ {[%clk 0:01:03.3]} 26. Ka1 {[%clk 0:00:35.1]} 26... Ne5
{[%clk 0:00:51.3]} 27. Bg2 {[%clk 0:00:24.3]} 27... Qd3 {[%clk 0:00:51.4]} 0-1

[Event "*** Titled Tuesday Blitz"]
[Site "Chess.com"]
[Date "2021.02.16"]
[Round "1"]
[White "CraiggoryC"]
[Black "sergeikim"]
[Result "1-0"]
[WhiteElo "2219"]
[BlackElo "2518"]
[TimeControl "180+1"]
[EndTime "10:06:15 PST"]
[Termination "CraiggoryC won by resignation"]

1. e4 {[%clk 0:03:00.6]} 1... e5 {[%clk 0:02:59.7]} 2. Nf3 {[%clk 0:03:00.4]}
2... Nc6 {[%clk 0:02:59.7]} 3. Bb5 {[%clk 0:03:01]} 3... a6 {[%clk 0:02:59.7]}
4. Ba4 {[%clk 0:03:01.6]} 4... Nf6 {[%clk 0:02:59.3]} 5. d3 {[%clk 0:03:02.3]}
5... b5 {[%clk 0:02:58.8]} 6. Bb3 {[%clk 0:03:02.5]} 6... Bc5 {[%clk 0:02:59.1]}
7. O-O {[%clk 0:03:02.2]} 7... d6 {[%clk 0:02:58.4]} 8. a4 {[%clk 0:03:01.3]}
8... b4 {[%clk 0:02:56.5]} 9. Nbd2 {[%clk 0:02:47.3]} 9... O-O {[%clk
0:02:54.1]} 10. c3 {[%clk 0:02:47.5]} 10... a5 {[%clk 0:02:51.8]} 11. Nc4 {[%clk
0:02:43.8]} 11... h6 {[%clk 0:02:49.8]} 12. Be3 {[%clk 0:02:43.2]} 12... Ba7
{[%clk 0:02:47.8]} 13. Bxa7 {[%clk 0:02:26.4]} 13... Rxa7 {[%clk 0:02:46.3]} 14.
Ne3 {[%clk 0:02:22.4]} 14... Be6 {[%clk 0:02:41.1]} 15. Nd5 {[%clk 0:02:21.7]}
15... Bxd5 {[%clk 0:02:38.7]} 16. exd5 {[%clk 0:02:20.5]} 16... Ne7 {[%clk
0:02:38.4]} 17. c4 {[%clk 0:02:11.6]} 17... c5 {[%clk 0:02:24.8]} 18. dxc6
{[%clk 0:01:56]} 18... Nxc6 {[%clk 0:02:24.4]} 19. d4 {[%clk 0:01:55.8]} 19...
e4 {[%clk 0:02:23.2]} 20. d5 {[%clk 0:01:42]} 20... exf3 {[%clk 0:02:18.5]} 21.
dxc6 {[%clk 0:01:42.5]} 21... fxg2 {[%clk 0:02:18.1]} 22. Re1 {[%clk 0:01:43.1]}
22... Rc7 {[%clk 0:02:11.2]} 23. Qf3 {[%clk 0:01:40.5]} 23... Qc8 {[%clk
0:02:10.4]} 24. Rad1 {[%clk 0:01:20.9]} 24... Rxc6 {[%clk 0:02:10.2]} 25. Re7
{[%clk 0:01:13.4]} 25... Re8 {[%clk 0:02:03.3]} 26. Ra7 {[%clk 0:01:05.2]} 26...
Rc5 {[%clk 0:01:54.2]} 27. h4 {[%clk 0:00:33.4]} 27... Qe6 {[%clk 0:01:27.5]}
28. Kxg2 {[%clk 0:00:18.1]} 28... Nh5 {[%clk 0:01:21.8]} 29. Rxd6 {[%clk
0:00:11.6]} 29... Qxd6 {[%clk 0:01:02.2]} 30. Qxf7+ {[%clk 0:00:11.3]} 30... Kh7
{[%clk 0:01:02.7]} 31. Bc2+ {[%clk 0:00:10.6]} 1-0

[Event "*** Titled Tuesday Blitz"]
[Site "Chess.com"]
[Date "2021.02.16"]
[Round "1"]
[White "smshk35"]
[Black "Alexsur1981"]
[Result "0-1"]
[WhiteElo "2434"]
[BlackElo "2853"]
[TimeControl "180+1"]
[EndTime "10:06:17 PST"]
[Termination "Alexsur1981 won by resignation"]

1. e4 {[%clk 0:03:00.9]} 1... c5 {[%clk 0:02:58.8]} 2. b3 {[%clk 0:02:59.8]}
2... b6 {[%clk 0:02:58.6]} 3. Bb2 {[%clk 0:02:59.9]} 3... Bb7 {[%clk 0:02:59.3]}
4. Nc3 {[%clk 0:02:59.8]} 4... e6 {[%clk 0:02:59.4]} 5. Nf3 {[%clk 0:02:59.8]}
5... Nf6 {[%clk 0:02:59.5]} 6. e5 {[%clk 0:02:57.3]} 6... Nd5 {[%clk 0:02:59.3]}
7. Ne4 {[%clk 0:02:55.4]} 7... Nc6 {[%clk 0:02:57.9]} 8. c4 {[%clk 0:02:48.2]}
8... Nf4 {[%clk 0:02:57.8]} 9. Nd6+ {[%clk 0:02:30.4]} 9... Bxd6 {[%clk
0:02:56.2]} 10. exd6 {[%clk 0:02:31.3]} 10... O-O {[%clk 0:02:52.9]} 11. d4
{[%clk 0:02:30.5]} 11... cxd4 {[%clk 0:02:51.2]} 12. Nxd4 {[%clk 0:02:29.7]}
12... Nxd4 {[%clk 0:02:51.2]} 13. Qxd4 {[%clk 0:02:29.1]} 13... e5 {[%clk
0:02:51.8]} 14. Qd2 {[%clk 0:02:18]} 14... Bxg2 {[%clk 0:02:51.5]} 15. Bxg2
{[%clk 0:02:11]} 15... Nxg2+ {[%clk 0:02:51.1]} 16. Kf1 {[%clk 0:02:11.3]} 16...
Nf4 {[%clk 0:02:48.5]} 17. Bxe5 {[%clk 0:02:10.7]} 17... Ng6 {[%clk 0:02:49]}
18. Bc3 {[%clk 0:02:02]} 18... Re8 {[%clk 0:02:41.1]} 19. h4 {[%clk 0:01:49.9]}
19... Nxh4 {[%clk 0:02:26.3]} 20. Qd4 {[%clk 0:01:41.8]} 20... Nf5 {[%clk
0:02:25.1]} 21. Qg4 {[%clk 0:01:20]} 21... g6 {[%clk 0:02:21.9]} 22. Kg2 {[%clk
0:00:38.4]} 22... h6 {[%clk 0:02:18.7]} 23. Rag1 {[%clk 0:00:37.7]} 23... Re6
{[%clk 0:02:07.5]} 24. Kf1 {[%clk 0:00:32.7]} 24... Kf8 {[%clk 0:02:00.7]} 25.
Qf4 {[%clk 0:00:24.8]} 25... h5 {[%clk 0:01:07.8]} 26. Rxh5 {[%clk 0:00:24.4]}
26... gxh5 {[%clk 0:01:08.7]} 27. Qxf5 {[%clk 0:00:20.5]} 27... Qh4 {[%clk
0:01:09.2]} 28. Qh7 {[%clk 0:00:10.8]} 28... Rxd6 {[%clk 0:00:59.4]} 29. Qh6+
{[%clk 0:00:02.2]} 29... Rxh6 {[%clk 0:00:58.4]} 0-1

[Event "*** Titled Tuesday Blitz"]
[Site "Chess.com"]
[Date "2021.02.16"]
[Round "1"]
[White "BahadirOzen"]
[Black "Eloist"]
[Result "1/2-1/2"]
[WhiteElo "2759"]
[BlackElo "2412"]
[TimeControl "180+1"]
[EndTime "10:06:19 PST"]
[Termination "Game drawn by agreement"]

1. g3 {[%clk 0:03:00.9]} 1... e5 {[%clk 0:02:48.4]} 2. Bg2 {[%clk 0:03:01]} 2...
d5 {[%clk 0:02:46.3]} 3. d3 {[%clk 0:03:01.1]} 3... Nf6 {[%clk 0:02:45.5]} 4.
Nf3 {[%clk 0:03:00.7]} 4... Bd6 {[%clk 0:02:44.5]} 5. O-O {[%clk 0:03:01]} 5...
O-O {[%clk 0:02:43.3]} 6. Nbd2 {[%clk 0:02:58.3]} 6... Re8 {[%clk 0:02:42.1]} 7.
e4 {[%clk 0:02:58.1]} 7... c6 {[%clk 0:02:40.7]} 8. b3 {[%clk 0:02:58.6]} 8...
a5 {[%clk 0:02:38.8]} 9. a3 {[%clk 0:02:58.3]} 9... Nbd7 {[%clk 0:02:06]} 10.
Bb2 {[%clk 0:02:58.1]} 10... d4 {[%clk 0:01:58.1]} 11. c3 {[%clk 0:02:40.9]}
11... c5 {[%clk 0:01:54.3]} 12. Nc4 {[%clk 0:02:39.2]} 12... Bc7 {[%clk
0:01:52.9]} 13. cxd4 {[%clk 0:02:24.3]} 13... cxd4 {[%clk 0:01:42.6]} 14. b4
{[%clk 0:02:24.4]} 14... a4 {[%clk 0:01:28.5]} 15. Rc1 {[%clk 0:02:17.1]} 15...
b5 {[%clk 0:01:25.1]} 16. Ncd2 {[%clk 0:02:14.1]} 16... Nf8 {[%clk 0:01:16.3]}
17. Qc2 {[%clk 0:01:51.4]} 17... Bd6 {[%clk 0:01:07]} 18. Nh4 {[%clk 0:01:51.4]}
18... Be6 {[%clk 0:00:50.4]} 19. Nf5 {[%clk 0:01:47.7]} 19... Rc8 {[%clk
0:00:49.4]} 20. Qb1 {[%clk 0:01:47.9]} 20... Qd7 {[%clk 0:00:42.8]} 21. Nxd6
{[%clk 0:01:46.9]} 21... Qxd6 {[%clk 0:00:43.6]} 22. h3 {[%clk 0:01:28.9]} 22...
N6d7 {[%clk 0:00:36.4]} 23. Rxc8 {[%clk 0:01:11.4]} 23... Rxc8 {[%clk
0:00:35.9]} 24. f4 {[%clk 0:01:11.9]} 24... f6 {[%clk 0:00:35.5]} 25. f5 {[%clk
0:01:11.8]} 25... Bf7 {[%clk 0:00:34.9]} 26. g4 {[%clk 0:01:09.3]} 26... g5
{[%clk 0:00:31.9]} 27. Rc1 {[%clk 0:01:00.8]} 27... Rc6 {[%clk 0:00:30.3]} 28.
h4 {[%clk 0:00:55.3]} 28... h6 {[%clk 0:00:21.1]} 29. Kf2 {[%clk 0:00:50.9]}
29... Qc7 {[%clk 0:00:20.6]} 30. Rxc6 {[%clk 0:00:48.9]} 30... Qxc6 {[%clk
0:00:20.5]} 1/2-1/2